bitfinex/quotes_SOLUSD_20251025
["timestamp","ask_amount","ask_price","bid_price","bid_amount"]
[1761413485949,5.19918487,192.34,192.31,16.29995915]
[1761413488956,5.86918487,192.34,192.31,16.29995915]
[1761413489462,0.67,192.33,192.31,15.60995915]
[1761413489641,5.19918487,192.34,192.31,15.60995915]
[1761413489840,5.86918487,192.34,192.31,16.29995915]
[1761413491572,5.19918487,192.34,192.32,0.69]
[1761413493473,28.07890429,192.35,192.32,0.69]
[1761413493659,5.19890429,192.35,192.32,0.69]
[1761413494055,5.19890429,192.35,192.33,15.60914696]
[1761413496067,5.86858598,192.36,192.33,15.60914696]
[1761413497273,5.86858598,192.36,192.33,16.29914696]
[1761413498278,0.67,192.35,192.33,15.60914696]
[1761413498766,5.86887298,192.35,192.3,6.6624558]
[1761413498974,5.86887298,192.35,192.31,0.69]
[1761413499179,0.67,192.34,192.31,5.88858598]
[1761413499572,0.67,192.34,192.31,0.69]
[1761413499772,5.86858598,192.36,192.31,0.69]
[1761413500074,0.67,192.35,192.32,5.19887298]
[1761413500565,0.67,192.35,192.32,5.88887298]
[1761413501074,5.86898322,192.35,192.32,0.69]
[1761413501271,5.86898322,192.35,192.33,5.19858598]
[1761413501475,5.19898322,192.35,192.33,5.19858598]
[1761413501664,5.19898322,192.35,192.33,5.88858598]
[1761413502051,5.86855067,192.37,192.33,5.88858598]
[1761413502251,5.19855067,192.37,192.33,5.88858598]
[1761413502454,5.86855067,192.37,192.34,0.69]
[1761413502774,5.86855067,192.37,192.34,6.57858598]
[1761413503358,5.86855067,192.37,192.34,5.88858598]
[1761413505470,5.86855067,192.37,192.34,6.57858598]
[1761413505780,0.67,192.4,192.35,0.69]
[1761413506089,0.67,192.4,192.35,2.15227504]
[1761413506452,0.67,192.4,192.36,6.57858598]
[1761413506954,0.67,192.4,192.36,0.69]
[1761413507259,5.86776446,192.4,192.37,6.57858598]
[1761413507858,0.67,192.39,192.37,6.57858598]
[1761413513476,5.8677819,192.39,192.37,6.57858598]
[1761413513896,0.69,192.38,192.37,6.57858598]
[1761413514279,5.1977819,192.39,192.37,6.57858598]
[1761413514479,5.8877819,192.39,192.37,6.57858598]
[1761413518491,0.69,192.39,192.37,6.57858598]
[1761413521479,5.19763002,192.4,192.37,7.23858598]
[1761413521684,5.19763002,192.4,192.37,6.57858598]
[1761413521884,0.72,192.39,192.35,5.85864206]
[1761413522188,0.72,192.39,192.36,7.23858598]
[1761413522585,0.72,192.39,192.36,0.66]
[1761413522890,2.18227504,192.41,192.37,5.19763002]
[1761413523079,0.72,192.4,192.37,5.19763002]
[1761413523272,0.72,192.4,192.37,5.85763002]
[1761413523893,0.72,192.4,192.37,0.66]
[1761413524073,0.72,192.4,192.38,12.99853831]
[1761413524270,7.37979316,192.4,192.38,12.99853831]
[1761413524683,0.72,192.39,192.38,12.99853831]
[1761413526398,0.72,192.39,192.35,5.85875147]
[1761413526592,0.72,192.39,192.35,18.85728978]
[1761413528987,0.72,192.39,192.35,18.19728978]
[1761413530475,0.72,192.39,192.35,18.85728978]
[1761413530999,0.72,192.39,192.36,0.66]
[1761413531373,2.18227504,192.43,192.36,11.05591803]
[1761413531591,0.72,192.43,192.37,1.46227504]
[1761413531772,0.72,192.43,192.38,1.46227504]
[1761413532095,0.72,192.43,192.38,4.20284511]
[1761413532297,0.72,192.43,192.39,0.66]
[1761413532798,0.72,192.43,192.39,5.85839991]
[1761413536301,0.72,192.43,192.39,0.66]
[1761413543005,5.91682458,192.43,192.39,0.66]
[1761413543504,0.66,192.42,192.39,0.66]
[1761413544497,0.66,192.42,192.38,5.19804519]
[1761413544699,0.66,192.42,192.38,5.88804519]
[1761413545197,0.66,192.42,192.38,5.19804519]
[1761413547609,5.85697096,192.42,192.38,5.19804519]
[1761413548493,0.66,192.41,192.38,5.19804519]
[1761413550587,0.66,192.41,192.38,5.88804519]
[1761413559219,0.66,192.41,192.38,5.19804519]
[1761413560002,0.66,192.41,192.38,5.88804519]
[1761413567633,0.66,192.41,192.38,5.19804519]
[1761413568809,0.66,192.41,192.38,5.88804519]
[1761413569004,0.66,192.41,192.38,5.19804519]
[1761413571451,5.85734011,192.41,192.37,35.8]
[1761413571611,2.28275435,192.4,192.32,0.7]
[1761413571927,0.7,192.4,192.33,2.28275435]
[1761413572124,5.89734011,192.41,192.33,2.28275435]
[1761413572313,5.19734011,192.41,192.35,2.28275435]
[1761413572518,0.7,192.4,192.36,0.7]
[1761413574210,5.89753928,192.4,192.36,0.7]
[1761413575633,0.7,192.39,192.36,0.7]
[1761413576131,0.7,192.39,192.35,38.10275435]
[1761413576326,0.7,192.39,192.35,38.80275435]
[1761413577230,0.7,192.39,192.36,0.7]
[1761413581027,0.71,192.4,192.36,0.7]
[1761413581456,5.19696497,192.42,192.36,5.89857336]
[1761413581641,5.90696497,192.42,192.36,5.89857336]
[1761413581944,0.71,192.42,192.37,2.98275435]
[1761413582112,0.71,192.42,192.38,0.7]
[1761413583846,0.71,192.42,192.38,5.89795014]
[1761413584031,0.71,192.42,192.39,0.7]
[1761413585548,5.19642485,192.44,192.39,0.7]
[1761413585847,0.71,192.43,192.39,0.7]
[1761413586829,5.9068464,192.43,192.39,0.7]
[1761413587338,0.71,192.42,192.39,0.7]
[1761413589249,0.71,192.42,192.38,5.19795014]
[1761413589441,5.9070197,192.42,192.38,0.7]
[1761413589929,0.71,192.41,192.38,0.7]
[1761413593329,5.90726812,192.41,192.35,0.7]
[1761413593740,0.71,192.4,192.35,0.7]
[1761413594452,5.90769375,192.4,192.33,44.02002247]
[1761413594654,5.90769375,192.4,192.33,38.82275435]
[1761413594831,0.71,192.39,192.33,38.82275435]
[1761413595354,0.71,192.39,192.33,44.02209276]
[1761413595934,5.90791803,192.39,192.33,44.02209276]
[1761413596654,0.71,192.38,192.33,44.02209276]
[1761413597151,0.71,192.38,192.34,5.89791803]
[1761413598654,0.71,192.38,192.34,11.09701853]
[1761413599455,0.71,192.38,192.34,10.39701853]
[1761413601855,0.71,192.38,192.34,11.05701853]
[1761413603557,0.71,192.38,192.34,10.39701853]
[1761413605342,0.71,192.38,192.34,11.05701853]
[1761413607273,0.71,192.38,192.34,10.39701853]
[1761413607467,0.71,192.38,192.34,11.05701853]
[1761413611370,0.71,192.38,192.34,13.33977288]
[1761413614671,0.71,192.38,192.34,12.51845017]
[1761413615376,1.46143164,192.37,192.34,5.19791803]
[1761413615548,22.88,192.35,192.29,0.66]
[1761413615749,22.88,192.34,192.29,0.66]
[1761413616069,0.71,192.36,192.32,1.46143164]
[1761413616367,28.07804684,192.38,192.32,1.46143164]
[1761413616567,0.71,192.37,192.33,0.66]
[1761413616861,0.71,192.37,192.32,1.46143164]
[1761413617042,0.71,192.37,192.32,2.12143164]
[1761413617352,5.90839834,192.37,192.32,2.12143164]
[1761413617857,0.71,192.36,192.32,2.12143164]
[1761413619961,5.90865453,192.36,192.31,52.92976649]
[1761413620157,5.90865453,192.36,192.31,37.98143164]
[1761413620363,0.71,192.35,192.31,37.98143164]
[1761413620870,0.71,192.35,192.32,0.66]
[1761413621382,5.90886725,192.35,192.32,0.66]
[1761413621584,5.90886725,192.35,192.31,35.86]
[1761413621752,5.19886725,192.35,192.31,36.52]
[1761413621959,5.19886725,192.35,192.32,0.66]
[1761413621960,5.90886725,192.35,192.32,0.66]
[1761413622878,5.19831574,192.37,192.32,0.66]
[1761413623050,0.71,192.35,192.32,0.66]
[1761413623469,0.71,192.35,192.31,37.98143164]
[1761413624080,5.90898059,192.35,192.31,36.52]
[1761413624680,5.90898059,192.35,192.32,0.66]
[1761413625676,5.19858598,192.36,192.31,35.86]
[1761413625873,5.19858598,192.36,192.31,36.52]
[1761413626081,0.71,192.35,192.32,0.66]
[1761413626578,0.71,192.35,192.31,35.86]
[1761413626874,5.90901588,192.35,192.31,36.52]
[1761413627073,5.90901588,192.35,192.31,35.86]
[1761413627381,0.71,192.34,192.31,35.86]
[1761413629078,5.90932843,192.34,192.31,35.86]
[1761413629480,0.71,192.33,192.29,58.79267378]
[1761413630256,0.71,192.33,192.29,53.59220307]
[1761413630580,0.71,192.33,192.3,0.71]
[1761413630873,0.71,192.33,192.29,53.64220307]
[1761413631490,0.71,192.33,192.29,52.93220307]
[1761413631660,0.71,192.33,192.3,0.71]
[1761413632371,0.71,192.33,192.29,53.64220307]
[1761413632980,7.37090702,192.33,192.29,0.71]
[1761413633193,5.90947538,192.33,192.29,0.71]
[1761413633476,0.67,192.32,192.29,0.71]
[1761413633662,0.67,192.32,192.28,41.05932843]
[1761413633663,0.67,192.32,192.28,36.57]
[1761413634465,5.86967881,192.32,192.28,36.57]
[1761413634885,0.67,192.31,192.28,36.57]
[1761413642290,5.19912654,192.34,192.29,2.15143164]
[1761413642468,5.19912654,192.34,192.3,1.46143164]
[1761413642781,5.19912654,192.34,192.3,0.69]
[1761413642986,0.71,192.33,192.3,0.69]
[1761413643580,5.90955419,192.33,192.3,0.69]
[1761413645389,5.19955419,192.33,192.3,0.69]
[1761413646388,22.88,192.34,192.3,0.69]
[1761413646685,0.71,192.34,192.31,15.61158379]
[1761413646892,0.71,192.33,192.31,15.61158379]
[1761413649894,5.9095193,192.33,192.31,15.61158379]
[1761413650786,5.1995193,192.33,192.31,15.61158379]
[1761413651294,0.71,192.33,192.31,15.61158379]
[1761413651892,0.71,192.33,192.29,1.46143164]
[1761413652093,0.71,192.33,192.29,0.69]
[1761413652292,0.71,192.33,192.3,15.61158379]
[1761413653498,5.19966722,192.32,192.26,5.20126556]
[1761413653678,5.19966722,192.32,192.27,35.86]
[1761413653879,0.71,192.31,192.29,15.61320877]
[1761413655200,5.91008465,192.31,192.29,15.61320877]
[1761413655503,5.91008465,192.31,192.27,35.86]
[1761413655691,0.71,192.3,192.27,35.86]
[1761413655873,0.71,192.3,192.28,15.61402139]
[1761413656515,5.91036774,192.3,192.28,15.61402139]
[1761413657005,0.71,192.29,192.28,15.61402139]
[1761413660095,5.1999376,192.31,192.28,15.61402139]
[1761413660486,0.68,192.3,192.28,15.61402139]
[1761413661084,5.88027442,192.3,192.28,15.61402139]
[1761413662102,0.68,192.29,192.28,15.61402139]
[1761413670110,5.88047844,192.29,192.28,15.61402139]
[1761413670408,5.88047844,192.29,192.25,35.86]
[1761413670610,0.68,192.28,192.26,12.99995366]
[1761413672916,5.88084204,192.28,192.26,12.99995366]
[1761413676919,0.68,192.27,192.26,12.99995366]
[1761413677518,5.200208,192.3,192.26,12.99995366]
[1761413677695,0.68,192.29,192.26,12.99995366]
[1761413678089,5.2007489,192.28,192.26,12.99995366]
[1761413678807,5.2007489,192.28,192.21,35.98660421]
[1761413678808,10.87647521,192.27,192.22,0.71]
[1761413679036,11.55647521,192.27,192.22,2.99588705]
[1761413679321,0.68,192.26,192.23,15.28584071]
[1761413679509,0.68,192.26,192.23,15.99584071]
[1761413680016,5.88135799,192.26,192.23,15.28584071]
[1761413681409,5.88135799,192.26,192.23,15.99584071]
[1761413683425,5.88135799,192.26,192.23,15.28584071]
[1761413686306,5.88135799,192.26,192.23,15.99584071]
[1761413687025,5.88135799,192.26,192.23,15.28584071]
[1761413687026,0.68,192.25,192.23,15.28584071]
[1761413687231,13.00187226,192.28,192.23,15.28584071]
[1761413687232,5.88100953,192.28,192.24,0.71]
[1761413687419,0.68,192.27,192.24,0.71]
[1761413687727,0.68,192.27,192.23,2.99588705]
[1761413688121,5.88102333,192.27,192.25,15.6172727]
[1761413694940,0.69,192.26,192.25,15.6172727]
[1761413695122,0.69,192.26,192.23,0.71]
[1761413695323,0.69,192.26,192.24,13.16236226]
[1761413696824,5.8914541,192.26,192.24,13.16236226]
[1761413700344,0.69,192.25,192.21,35.96]
[1761413700516,0.69,192.25,192.21,36.64]
[1761413700717,0.69,192.25,192.23,15.61808574]
[1761413701938,5.89164838,192.25,192.23,15.61808574]
[1761413702519,5.89130818,192.26,192.23,16.29808574]
[1761413702921,5.89130818,192.26,192.23,0.68]
[1761413703116,5.89130818,192.26,192.24,13.16236226]
[1761413704143,5.2007489,192.28,192.25,0.68]
[1761413704335,5.8907489,192.28,192.25,0.68]
[1761413704845,5.8907489,192.28,192.25,16.2972727]
[1761413705049,5.20047844,192.29,192.25,15.6172727]
[1761413705262,0.69,192.28,192.25,0.68]
[1761413705846,5.89047844,192.29,192.25,0.68]
[1761413706224,5.89047844,192.29,192.25,16.29564687]
[1761413706642,5.89094003,192.28,192.25,16.29564687]
[1761413708350,5.89094003,192.28,192.25,15.61564687]
[1761413708651,0.69,192.27,192.25,15.61564687]
[1761413709068,5.89106708,192.27,192.25,15.61564687]
[1761413710549,5.20047844,192.29,192.25,15.61564687]
[1761413710755,5.89047844,192.29,192.25,16.29564687]
[1761413710932,5.89047844,192.29,192.26,0.68]
[1761413711128,0.69,192.28,192.25,16.29564687]
[1761413714634,5.20101939,192.27,192.25,16.29564687]
[1761413716758,5.20101939,192.27,192.25,15.61564687]
[1761413716935,0.69,192.27,192.25,15.61564687]
[1761413717134,0.69,192.27,192.24,0.68]
[1761413717336,5.89047844,192.29,192.24,0.68]
[1761413717548,0.69,192.28,192.25,15.61564687]
[1761413718447,5.20101939,192.27,192.25,15.61564687]
[1761413718757,5.20101939,192.27,192.25,16.29564687]
[1761413719139,5.20101939,192.27,192.24,0.68]
[1761413719451,5.20101939,192.27,192.26,15.61564687]
[1761413720255,5.20047844,192.29,192.26,15.61564687]
[1761413720465,0.72,192.27,192.26,15.61564687]
[1761413720838,5.20047844,192.29,192.26,15.61564687]
[1761413721264,5.92047844,192.29,192.26,15.61564687]
[1761413721661,5.20101939,192.27,192.26,15.61564687]
[1761413723468,5.20101939,192.27,192.25,0.69]
[1761413723856,5.20101939,192.27,192.25,16.30564687]
[1761413724348,5.20101939,192.27,192.25,15.61564687]
[1761413725255,0.72,192.27,192.25,15.61564687]
[1761413726162,5.92047844,192.29,192.25,16.30564687]
[1761413726355,5.92100609,192.28,192.25,16.30564687]
[1761413726562,5.92100609,192.28,192.25,0.69]
[1761413726860,5.92100609,192.28,192.26,15.61564687]
[1761413727768,5.92100609,192.28,192.24,0.69]
[1761413727936,5.92100609,192.28,192.25,15.61564687]
[1761413728263,0.72,192.27,192.25,15.61564687]
[1761413730662,5.92115048,192.27,192.25,15.61564687]
[1761413733569,5.92115048,192.27,192.23,0.69]
[1761413733963,0.72,192.26,192.24,15.61564687]
[1761413734770,5.92146721,192.26,192.24,15.61564687]
[1761413735153,0.72,192.25,192.24,15.61564687]
[1761413737853,5.92156046,192.25,192.21,38.93588705]
[1761413738170,5.92156046,192.25,192.22,15.28777492]
[1761413738374,5.20156046,192.25,192.22,15.28777492]
[1761413738570,0.72,192.24,192.22,15.28777492]
[1761413739578,0.72,192.25,192.22,15.28777492]
[1761413741585,5.20183104,192.24,192.22,15.28777492]
[1761413741957,0.72,192.23,192.22,15.28777492]
[1761413742279,0.72,192.23,192.21,0.1]
[1761413742577,0.72,192.23,192.21,5.30183104]
[1761413743373,5.92211473,192.23,192.21,5.30183104]
[1761413745078,0.72,192.23,192.21,5.30183104]
[1761413751885,5.20130006,192.26,192.21,10.5044295]
[1761413752069,0.72,192.25,192.21,6.00259846]
[1761413752270,0.72,192.25,192.22,15.61889886]
[1761413754067,5.92157764,192.25,192.22,15.61889886]
[1761413754386,0.72,192.24,192.22,15.61889886]
[1761413758867,28.80124418,192.27,192.23,0.7]
[1761413759583,28.80124418,192.27,192.24,15.6172727]
[1761413759989,28.80124418,192.27,192.24,16.3072727]
[1761413760692,0.69,192.3,192.26,1.46342399]
[1761413760890,10.87647521,192.31,192.26,1.46342399]
[1761413761101,5.20022659,192.3,192.27,0.69]
[1761413761274,5.89022659,192.3,192.27,0.69]
[1761413761774,5.89022659,192.3,192.28,15.61564687]
[1761413769901,5.20022659,192.3,192.28,15.61564687]
[1761413770194,5.89047844,192.29,192.28,15.61564687]
[1761413771000,5.20047844,192.29,192.28,15.61564687]
[1761413771298,5.200208,192.3,192.28,15.61564687]
[1761413771502,5.890208,192.3,192.28,15.61564687]
[1761413774989,5.89047844,192.29,192.28,15.61564687]
[1761413776306,5.200208,192.3,192.28,15.61564687]
[1761413776506,5.890208,192.3,192.28,15.61564687]
[1761413777407,5.890208,192.3,192.27,0.69]
[1761413782494,5.890208,192.3,192.27,16.30483409]
[1761413783908,0.72,192.29,192.27,15.61483409]
[1761413784089,5.200208,192.3,192.27,15.61483409]
[1761413784300,5.920208,192.3,192.27,16.29483409]
[1761413785207,5.200208,192.3,192.27,15.61483409]
[1761413785414,5.92059022,192.29,192.27,15.61483409]
[1761413785808,5.20059022,192.29,192.27,15.61483409]
[1761413786007,5.20023106,192.3,192.28,0.68]
[1761413790102,5.92023106,192.3,192.27,17.75825808]
[1761413790310,5.92023106,192.3,192.27,16.29483409]
[1761413791503,5.20023106,192.3,192.28,0.68]
[1761413791688,5.20023106,192.3,192.27,15.61483409]
[1761413791894,5.20023106,192.3,192.27,16.29483409]
[1761413792095,5.92023106,192.3,192.27,16.29483409]
[1761413800528,5.92023106,192.3,192.27,16.29483409]
[1761413806135,5.20023106,192.3,192.27,2.28540211]
[1761413806323,5.20023106,192.3,192.28,0.68]
[1761413806528,5.20023106,192.3,192.28,16.29402139]
[1761413807821,5.20023106,192.3,192.28,15.61402139]
[1761413811129,5.88023106,192.3,192.28,15.61402139]
[1761413816143,5.20023106,192.3,192.28,15.61402139]
[1761413816448,5.20023106,192.3,192.28,16.31402139]
[1761413816623,5.20023106,192.3,192.28,15.61402139]
[1761413817022,5.88023106,192.3,192.28,15.61402139]
[1761413819347,5.20023106,192.3,192.28,15.61402139]
[1761413820946,5.20023106,192.3,192.28,16.31402139]
[1761413821347,5.20023106,192.3,192.28,15.61402139]
[1761413822034,5.20023106,192.3,192.28,16.31402139]
[1761413822345,22.88,192.31,192.28,15.61402139]
[1761413822536,22.88,192.31,192.29,0.7]
[1761413822943,5.1999049,192.32,192.29,0.7]
[1761413823138,5.1999049,192.32,192.29,2.98540211]
[1761413823449,5.9099049,192.32,192.3,15.61239624]
[1761413823651,5.9099049,192.32,192.29,0.7]
[1761413824150,5.9099049,192.32,192.29,16.31239624]
[1761413826352,5.90939686,192.33,192.3,0.7]
[1761413827643,5.90939686,192.33,192.3,16.31239624]
[1761413827843,5.90939686,192.33,192.3,15.61239624]
[1761413828043,5.90939686,192.33,192.29,0.7]
[1761413828239,5.90992885,192.32,192.29,16.31239624]
[1761413829544,5.90939686,192.33,192.3,0.7]
[1761413829858,5.90939686,192.33,192.3,16.31239624]
[1761413831059,0.71,192.32,192.3,15.61239624]
[1761413831937,5.90982355,192.32,192.3,15.61239624]
[1761413832145,5.19982355,192.32,192.3,15.61239624]
[1761413832348,5.19982355,192.32,192.3,16.31239624]
[1761413833659,5.19982355,192.32,192.3,15.61239624]
[1761413833959,0.71,192.32,192.3,15.61239624]
[1761413836360,5.90970515,192.32,192.3,15.61239624]
[1761413836684,5.19970515,192.32,192.3,15.61239624]
[1761413836868,5.19970515,192.32,192.3,16.31239624]
[1761413837567,5.19970515,192.32,192.3,0.7]
[1761413837858,5.19970515,192.32,192.31,15.61239624]
[1761413839861,0.71,192.32,192.31,15.61239624]
[1761413840068,5.19939686,192.33,192.31,15.61239624]
[1761413840260,5.87939686,192.33,192.31,15.61239624]
[1761413841067,5.87966722,192.32,192.31,15.61239624]
[1761413843574,5.19939686,192.33,192.31,15.61239624]
[1761413843875,5.87939686,192.33,192.31,15.61239624]
[1761413844071,0.68,192.32,192.31,15.61239624]
[1761413845972,5.87939686,192.33,192.31,15.61239624]
[1761413850454,5.19939686,192.33,192.31,15.61239624]
[1761413850671,5.19939686,192.33,192.31,16.33239624]
[1761413850974,5.19939686,192.33,192.31,15.61239624]
[1761413851172,5.19939686,192.33,192.3,0.72]
[1761413851378,5.87967748,192.32,192.29,0.72]
[1761413851579,5.19967748,192.32,192.31,5.20100156]
[1761413852263,5.87967748,192.32,192.31,5.20100156]
[1761413853373,5.87939686,192.33,192.31,5.20100156]
[1761413854766,5.19939686,192.33,192.31,5.92100156]
[1761413855071,5.19939686,192.33,192.31,0.72]
[1761413855284,0.68,192.37,192.32,0.72]
[1761413855460,5.19809078,192.38,192.35,2.28540211]
[1761413855883,5.19809078,192.38,192.36,0.72]
[1761413856059,5.19809078,192.38,192.36,8.20640367]
[1761413856372,5.19809078,192.38,192.36,0.72]
[1761413856786,5.19809078,192.38,192.37,8.20640367]
[1761413858877,5.87777535,192.39,192.37,8.20640367]
[1761413862878,5.87804553,192.38,192.37,8.20640367]
[1761413863185,5.19804553,192.38,192.37,8.92640367]
[1761413863984,5.19777535,192.39,192.37,8.20640367]
[1761413864186,5.87777535,192.39,192.37,8.20640367]
[1761413869288,5.87804553,192.38,192.37,8.20640367]
[1761413870171,5.19804553,192.38,192.37,8.20640367]
[1761413870568,5.91777535,192.39,192.37,8.20640367]
[1761413870985,0.72,192.38,192.37,8.20640367]
[1761413871698,5.91804553,192.38,192.37,8.20640367]
[1761413881583,7.37940139,192.38,192.37,8.20640367]
[1761413881901,7.37940139,192.38,192.33,0.66]
[1761413882099,0.69,192.37,192.33,8.86640367]
[1761413882478,0.69,192.37,192.33,0.66]
[1761413882884,5.88849423,192.37,192.34,8.86640367]
[1761413883503,5.19849423,192.37,192.34,8.86640367]
[1761413883885,5.88849423,192.37,192.34,8.86640367]
[1761413885488,5.19809962,192.38,192.35,0.66]
[1761413886210,5.19809962,192.38,192.36,8.86640367]
[1761413886998,5.19809962,192.38,192.36,9.52640367]
[1761413887502,5.19777535,192.39,192.35,0.66]
[1761413887693,0.69,192.38,192.37,9.52640367]
[1761413888498,5.88804553,192.38,192.37,9.52640367]
[1761413896314,5.19777535,192.39,192.37,9.52640367]
[1761413896514,5.88777535,192.39,192.37,9.52640367]
[1761413897216,6.65913121,192.39,192.37,9.52640367]
[1761413897603,6.65913121,192.39,192.37,10.18640367]
[1761413897905,6.65913121,192.39,192.37,0.66]
[1761413898295,7.34913121,192.39,192.36,0.66]
[1761413899518,6.65913121,192.39,192.36,0.66]
[1761413900099,7.36913121,192.39,192.36,0.66]
[1761413900305,5.90777535,192.39,192.36,0.66]
[1761413907518,0.71,192.38,192.35,10.18640367]
[1761413907712,5.90777535,192.39,192.35,10.85640367]
[1761413907914,5.90777535,192.39,192.36,0.67]
[1761413914638,5.19777535,192.39,192.36,0.67]
[1761413914932,28.07754181,192.4,192.36,0.67]
[1761413915128,28.78754181,192.4,192.36,10.85640367]
[1761413919729,28.78754181,192.4,192.37,0.67]
[1761413920832,28.07754181,192.4,192.36,10.18640367]
[1761413921033,0.71,192.39,192.36,10.85640367]
[1761413923724,5.90788391,192.39,192.33,8.15279769]
[1761413924028,2.28346154,192.38,192.35,12.99986224]
[1761413924231,2.99346154,192.38,192.35,12.99986224]
[1761413924432,0.71,192.37,192.35,12.99986224]
[1761413925525,0.71,192.37,192.33,5.86933615]
[1761413925833,0.71,192.37,192.34,5.19815457]
[1761413929024,5.90815457,192.38,192.34,5.86815457]
[1761413929224,0.71,192.37,192.34,5.86815457]
[1761413929434,0.71,192.37,192.34,0.67]
[1761413929736,0.71,192.37,192.35,5.19815457]
[1761413931241,5.90838547,192.37,192.35,5.19815457]
[1761413931442,5.90838547,192.37,192.33,0.71]
[1761413931636,5.90838547,192.37,192.34,5.19815457]
[1761413932120,5.90838547,192.37,192.34,5.90815457]
[1761413933246,5.19804553,192.38,192.34,5.19815457]
[1761413933621,5.89804553,192.38,192.34,5.90815457]
[1761413933918,0.7,192.37,192.34,5.90815457]
[1761413934939,0.7,192.37,192.34,5.19815457]
[1761413935539,5.89834535,192.37,192.34,5.19815457]
[1761413937651,0.7,192.37,192.34,5.19815457]
[1761413939144,16.07425056,192.39,192.34,5.19815457]
[1761413939345,0.7,192.38,192.35,0.71]
[1761413939718,5.87777535,192.39,192.35,0.71]
[1761413940128,5.87777535,192.39,192.35,5.90902834]
[1761413940326,0.68,192.39,192.35,5.90902834]
[1761413940541,23.56,192.4,192.36,0.69]
[1761413940734,0.68,192.39,192.36,0.69]
[1761413940941,0.68,192.39,192.36,13.68887537]
[1761413941649,5.87777621,192.39,192.36,13.68887537]
[1761413942330,5.87777621,192.39,192.36,0.69]
[1761413943821,5.87777621,192.39,192.36,14.37887537]
[1761413945725,5.87777621,192.39,192.36,0.69]
[1761413948856,5.87777621,192.39,192.34,19.57790371]
[1761413949058,5.87777621,192.39,192.35,0.69]
[1761413955035,5.87777621,192.39,192.35,16.29752282]
[1761413955353,5.87777621,192.39,192.35,0.69]
[1761413955657,5.87777621,192.39,192.35,16.29752282]
[1761413955957,5.87777621,192.39,192.35,0.69]
[1761413956459,0.68,192.38,192.35,0.69]
[1761413956773,0.68,192.38,192.34,15.60752282]
[1761413957160,0.68,192.38,192.34,16.29752282]
[1761413957852,5.19831574,192.37,192.34,15.60752282]
[1761413958062,5.19831574,192.37,192.32,5.88963391]
[1761413958369,0.68,192.36,192.34,5.19831574]
[1761413961448,5.19804553,192.38,192.34,5.19831574]
[1761413961651,0.67,192.37,192.34,5.86831574]
[1761413961836,0.67,192.37,192.34,5.19831574]
[1761413962037,0.67,192.37,192.33,2.95346154]
[1761413962351,0.67,192.37,192.34,5.86804553]
[1761413962758,5.86836148,192.37,192.34,5.19804553]
[1761413963140,5.86836148,192.37,192.34,5.86804553]
[1761413963568,0.67,192.37,192.34,0.67]
[1761413963762,5.86804788,192.38,192.35,5.86804553]
[1761413964570,5.86804788,192.38,192.35,6.53804553]
[1761413965161,5.86804788,192.38,192.35,0.67]
[1761413965368,5.86804788,192.38,192.36,6.53804553]
[1761413966659,5.19804788,192.38,192.36,6.53804553]
[1761413966957,5.19804788,192.38,192.36,7.20804553]
[1761413967260,5.86804788,192.38,192.36,6.53804553]
[1761413967445,5.86804788,192.38,192.35,0.67]
[1761413967648,5.86777535,192.39,192.36,7.48254945]
[1761413968960,0.67,192.38,192.36,7.48254945]
[1761413971456,5.86777535,192.39,192.36,7.48254945]
[1761413971654,5.86777535,192.39,192.36,8.15254945]
[1761413972062,5.86777535,192.39,192.36,0.67]
[1761413972361,5.86777535,192.39,192.37,15.60752282]
[1761413976157,5.19777535,192.39,192.37,15.60752282]
[1761413976457,5.86804553,192.38,192.37,15.60752282]
[1761413978743,5.19777535,192.39,192.37,15.60752282]
[1761413979038,5.86777535,192.39,192.37,15.60752282]
[1761413985279,5.86804553,192.38,192.37,15.60752282]
[1761413985964,5.19804553,192.38,192.37,15.60752282]
[1761413986159,5.86804553,192.38,192.37,15.60752282]
[1761413990181,5.86804553,192.38,192.33,0.67]